bitfinex/quotes_BTCUSD_20260117
["timestamp","ask_amount","ask_price","bid_price","bid_amount"]
[1768611671116,0.010478,95438.0,95435.0,0.01047833]
[1768611671745,0.06286869,95437.0,95432.0,0.01047866]
[1768611672929,0.01047822,95436.0,95433.0,0.01047855]
[1768611673808,0.01047833,95435.0,95432.0,0.01047866]
[1768611675007,0.01047822,95436.0,95432.0,0.06287189]
[1768611675282,0.01047822,95436.0,95433.0,0.01047855]
[1768611677563,0.06286939,95436.0,95432.0,0.01047866]
[1768611677993,0.01047833,95435.0,95432.0,0.01047866]
[1768611678206,0.01047767,95441.0,95436.0,0.01047822]
[1768611678429,0.01047767,95441.0,95438.0,0.010478]
[1768611678636,0.01063474,95444.0,95438.0,0.010478]
[1768611678849,0.0001574,95444.0,95441.0,0.01047767]
[1768611679299,0.0001574,95444.0,95441.0,0.06286593]
[1768611679963,0.00062928,95444.0,95442.0,0.05238771]
[1768611680383,0.00062928,95444.0,95441.0,0.01047767]
[1768611680829,0.00062928,95444.0,95441.0,0.06286602]
[1768611681455,0.00062928,95444.0,95442.0,0.05238759]
[1768611681675,0.00062928,95444.0,95441.0,0.06286602]
[1768611682105,0.00062928,95444.0,95442.0,0.05238778]
[1768611682743,0.00062928,95444.0,95439.0,0.01047789]
[1768611682744,0.01047756,95442.0,95439.0,0.01047789]
[1768611683188,0.01047756,95442.0,95438.0,0.010478]
[1768611683831,0.01047767,95441.0,95437.0,0.01047811]
[1768611684461,0.01047767,95441.0,95437.0,0.010399]
[1768611684691,0.06286545,95442.0,95438.0,0.010478]
[1768611685150,0.01047756,95442.0,95438.0,0.010478]
[1768611686036,0.01047756,95442.0,95439.0,0.01047789]
[1768611686259,0.01047745,95443.0,95439.0,0.01047789]
[1768611686677,0.01047756,95442.0,95439.0,0.01047789]
[1768611688509,0.00062928,95444.0,95440.0,0.0628663]
[1768611688692,0.00062928,95444.0,95441.0,0.01047767]
[1768611689073,0.00062928,95444.0,95442.0,0.05238783]
[1768611689673,0.00062928,95444.0,95443.0,0.05238728]
[1768611690430,0.13747636,95453.0,95447.0,0.01047701]
[1768611690549,0.01047646,95452.0,95449.0,0.00843831]
[1768611690766,0.13747636,95453.0,95449.0,0.00722495]
[1768611690967,0.18985816,95453.0,95449.0,0.00722495]
[1768611691167,0.01047646,95452.0,95448.0,0.0104769]
[1768611691578,0.009682,95452.0,95448.0,0.06286143]
[1768611692266,0.01047636,95453.0,95449.0,0.06286076]
[1768611692480,0.00581082,95453.0,95449.0,0.06286076]
[1768611692686,0.00581082,95453.0,95449.0,0.01047679]
[1768611692882,0.01047581,95458.0,95455.0,0.01047614]
[1768611693271,0.01096488,95459.0,95455.0,0.06285636]
[1768611693488,0.01096488,95459.0,95456.0,0.01047603]
[1768611693950,0.01047581,95458.0,95453.0,0.06285707]
[1768611694155,0.01047592,95457.0,95453.0,0.01047636]
[1768611696196,0.01047603,95456.0,95451.0,0.01047657]
[1768611696411,0.01047614,95455.0,95451.0,0.01047657]
[1768611696952,0.01047614,95455.0,95451.0,0.06285938]
[1768611697646,0.01047614,95455.0,95451.0,0.01047657]
[1768611698469,0.01047614,95455.0,95452.0,0.01047646]
[1768611700220,0.01047603,95456.0,95452.0,0.06285876]
[1768611700397,0.01047592,95457.0,95453.0,0.01047636]
[1768611700798,0.01047592,95457.0,95453.0,0.06285803]
[1768611701005,0.01047592,95457.0,95453.0,0.01047636]
[1768611701235,0.01047614,95455.0,95452.0,0.01047646]
[1768611701596,0.06285699,95455.0,95451.0,0.01047657]
[1768611702420,0.01047657,95451.0,95448.0,0.0104769]
[1768611702627,0.01047701,95447.0,95444.0,0.04534253]
[1768611702835,0.0104769,95448.0,95444.0,0.05572915]
[1768611703242,0.0104769,95448.0,95445.0,0.05581976]
[1768611703453,0.01047657,95451.0,95448.0,0.04534253]
[1768611703858,0.01047646,95452.0,95448.0,0.05581943]
[1768611704314,0.06285891,95452.0,95448.0,0.05581943]
[1768611704473,0.01047657,95451.0,95448.0,0.04534253]
[1768611705444,0.06285948,95451.0,95448.0,0.04534253]
[1768611706434,0.05238346,95450.0,95448.0,0.04534253]
[1768611706802,0.01047636,95453.0,95448.0,0.05581943]
[1768611707006,0.01047657,95451.0,95448.0,0.05581943]
[1768611707211,0.01047646,95452.0,95448.0,0.05581943]
[1768611707661,0.05238077,95455.0,95448.0,0.05581943]
[1768611707662,0.06285691,95455.0,95450.0,0.01047668]
[1768611707964,0.01047625,95454.0,95451.0,0.01047657]
[1768611708126,0.01047625,95454.0,95451.0,0.01043121]
[1768611709175,0.01047614,95455.0,95451.0,0.01043121]
[1768611709376,0.01047614,95455.0,95452.0,0.01047646]
[1768611709739,0.01047603,95456.0,95452.0,0.01047646]
[1768611709956,0.01047603,95456.0,95452.0,0.06285859]
[1768611710154,0.01047592,95457.0,95452.0,0.06285859]
[1768611710155,0.01047592,95457.0,95453.0,0.01047636]
[1768611710425,0.01047592,95457.0,95453.0,0.06285798]
[1768611710614,0.01047592,95457.0,95454.0,0.01047625]
[1768611710840,0.01047581,95458.0,95454.0,0.01047625]
[1768611711017,0.01047592,95457.0,95453.0,0.01047636]
[1768611712268,0.01047581,95458.0,95454.0,0.01047625]
[1768611712424,0.01096488,95459.0,95455.0,0.01047614]
[1768611712844,0.01096488,95459.0,95456.0,0.01047603]
[1768611713049,0.00048918,95459.0,95456.0,0.01047603]
[1768611713425,0.00048918,95459.0,95456.0,0.06285609]
[1768611714847,0.00048918,95459.0,95456.0,0.06285607]
[1768611715060,0.00048918,95459.0,95456.0,0.06281071]
[1768611715423,0.00048918,95459.0,95456.0,0.01043067]
[1768611715995,0.00048918,95459.0,95456.0,0.06281037]
[1768611716146,0.00048918,95459.0,95457.0,0.0523795]
[1768611716586,0.00048918,95459.0,95456.0,0.06281074]
[1768611716788,0.00048918,95459.0,95456.0,0.01043067]
[1768611716944,0.01096488,95459.0,95456.0,0.01043067]
[1768611719872,0.01047581,95458.0,95454.0,0.01047625]
[1768611721375,0.01047581,95458.0,95455.0,0.01047614]
[1768611721575,0.01047592,95457.0,95453.0,0.01047636]
[1768611721778,0.01047614,95455.0,95451.0,0.01047657]
[1768611722138,0.01047614,95455.0,95451.0,0.01043121]
[1768611722338,0.06285689,95455.0,95451.0,0.01043121]
[1768611722998,0.01047625,95454.0,95451.0,0.01043121]
[1768611725526,0.01047625,95454.0,95450.0,0.01047668]
[1768611725959,0.01047636,95453.0,95450.0,0.01047668]
[1768611726174,0.01047636,95453.0,95449.0,0.01047679]
[1768611726386,0.01047636,95453.0,95450.0,0.01047668]
[1768611726586,0.01047636,95453.0,95450.0,0.06286009]
[1768611726951,0.01047625,95454.0,95450.0,0.01047668]
[1768611727133,0.01047625,95454.0,95451.0,0.01047657]
[1768611727537,0.01047636,95453.0,95450.0,0.01047668]
[1768611729045,0.01047636,95453.0,95449.0,0.01047679]
[1768611729046,0.01047646,95452.0,95449.0,0.01047679]
[1768611729469,0.01047646,95452.0,95448.0,0.10820387]
[1768611729906,0.01047657,95451.0,95448.0,0.05581943]
[1768611730143,0.01047657,95451.0,95448.0,0.04534253]
[1768611730577,0.01047646,95452.0,95448.0,0.05581943]
[1768611730781,0.06285885,95452.0,95448.0,0.05581943]
[1768611731117,0.06285948,95451.0,95448.0,0.04534253]
[1768611731184,0.01047657,95451.0,95448.0,0.04534253]
[1768611731743,0.01047625,95454.0,95449.0,0.01047679]
[1768611731940,0.01047646,95452.0,95448.0,0.04534253]
[1768611732144,0.00048918,95459.0,95449.0,0.01047679]
[1768611732372,0.01047603,95456.0,95451.0,0.01047657]
[1768611732816,0.01047603,95456.0,95452.0,0.01047646]
[1768611733032,0.01063266,95463.0,95457.0,0.05237956]
[1768611733248,0.01047537,95462.0,95457.0,0.0523796]
[1768611733459,0.01047537,95462.0,95458.0,0.01047581]
[1768611734014,0.01063266,95463.0,95459.0,0.0104757]
[1768611734240,0.0001574,95463.0,95460.0,0.01047559]
[1768611735221,0.0001574,95463.0,95460.0,0.06285307]
[1768611735429,0.0001574,95463.0,95461.0,0.05237741]
[1768611736082,0.0001574,95463.0,95460.0,0.01047559]
[1768611736291,0.0001574,95463.0,95461.0,0.05237725]
[1768611736714,0.0001574,95463.0,95462.0,0.05237686]
[1768611736923,0.0001574,95463.0,95461.0,0.05237727]
[1768611737148,0.0001574,95463.0,95462.0,0.05237686]
[1768611738646,0.0001574,95463.0,95461.0,0.05237696]
[1768611739031,0.0001574,95463.0,95460.0,0.01047559]
[1768611739228,0.0001574,95463.0,95462.0,0.05237686]
[1768611739789,0.0001574,95463.0,95460.0,0.01047559]
[1768611740019,0.0001574,95463.0,95460.0,0.0628534]
[1768611740208,0.0001574,95463.0,95462.0,0.05237686]
[1768611740793,0.0001574,95463.0,95461.0,0.05237728]
[1768611741439,0.0001574,95463.0,95462.0,0.05237686]
[1768611741681,0.0001574,95463.0,95461.0,0.05237741]
[1768611741889,0.0001574,95463.0,95460.0,0.0628532]
[1768611742117,0.0001574,95463.0,95460.0,0.01047559]
[1768611742785,0.06300899,95463.0,95460.0,0.01047559]
[1768611743348,0.06300899,95463.0,95459.0,0.0104757]
[1768611744286,0.0001574,95463.0,95460.0,0.01047559]
[1768611744491,0.05237686,95462.0,95451.0,0.04641602]
[1768611744689,0.05237741,95461.0,95456.0,0.01047603]
[1768611744905,0.01047548,95461.0,95457.0,0.01047592]
[1768611745129,0.01047548,95461.0,95458.0,0.01047581]
[1768611745307,0.01047537,95462.0,95458.0,0.01047581]
[1768611745508,0.01047537,95462.0,95459.0,0.0104757]
[1768611747134,0.06285264,95462.0,95458.0,0.01047581]
[1768611747332,0.01047537,95462.0,95458.0,0.01047581]
[1768611747716,0.06285235,95462.0,95458.0,0.01047581]
[1768611748157,0.01047537,95462.0,95458.0,0.01047581]
[1768611750019,0.01047537,95462.0,95459.0,0.0104757]
[1768611750401,0.01047548,95461.0,95457.0,0.01047592]
[1768611750608,0.01047559,95460.0,95456.0,0.01047603]
[1768611751364,0.0104757,95459.0,95456.0,0.01047603]
[1768611751614,0.01047581,95458.0,95455.0,0.01047614]
[1768611753021,0.0104757,95459.0,95455.0,0.01047614]
[1768611754214,0.01047636,95453.0,95450.0,0.12696]
[1768611754427,0.01047712,95446.0,95438.0,0.05992003]
[1768611754628,0.0104769,95448.0,95443.0,0.01047745]
[1768611754787,0.01047712,95446.0,95442.0,0.01047756]
[1768611754992,0.0104769,95448.0,95443.0,0.06286455]
[1768611755233,0.06286279,95446.0,95442.0,0.01047756]
[1768611755416,0.01047657,95451.0,95445.0,0.01047723]
[1768611755617,0.01047668,95450.0,95445.0,0.01047723]
[1768611755897,0.01047668,95450.0,95446.0,0.01047712]
[1768611756778,0.01047668,95450.0,95446.0,0.06286269]
[1768611757984,0.06286019,95450.0,95446.0,0.01047712]
[1768611758284,0.0104769,95448.0,95444.0,0.01047734]
[1768611758605,0.01047701,95447.0,95443.0,0.01047745]
[1768611758931,0.06286212,95447.0,95443.0,0.01047745]
[1768611759471,0.06286283,95446.0,95441.0,0.01047767]
[1768611759833,0.01047712,95446.0,95442.0,0.01047756]
[1768611760038,0.01047701,95447.0,95443.0,0.01047745]
[1768611760446,0.0104769,95448.0,95444.0,0.06286407]
[1768611761185,0.0104769,95448.0,95445.0,0.01047723]
[1768611761621,0.01047668,95450.0,95447.0,0.01047701]
[1768611762602,0.01047668,95450.0,95447.0,0.01039782]
[1768611762798,0.01047636,95453.0,95449.0,0.01047679]
[1768611763047,0.01047636,95453.0,95450.0,0.01047668]
[1768611763355,0.06285691,95455.0,95450.0,0.06285999]
[1768611763784,0.01047614,95455.0,95451.0,0.01047657]
[1768611764432,0.12696,95456.0,95452.0,0.01047646]
[1768611764635,0.12696,95456.0,95452.0,0.00742132]
[1768611764819,0.01047592,95457.0,95453.0,1e-08]
[1768611765025,0.01047581,95458.0,95454.0,0.01047625]
[1768611765228,0.12696,95456.0,95454.0,0.01047625]
[1768611765415,0.12696,95456.0,95454.0,0.06285719]
[1768611765871,0.01047581,95458.0,95454.0,0.06285719]
[1768611766070,0.12696,95457.0,95454.0,0.01047625]
[1768611766275,0.12696,95456.0,95454.0,0.01047625]
[1768611766716,0.12696,95456.0,95453.0,0.01043103]
[1768611767118,0.13743603,95456.0,95453.0,0.01043103]
[1768611767326,0.06285704,95455.0,95451.0,0.01047657]
[1768611767736,0.12696,95454.0,95451.0,0.01047657]
[1768611768373,0.13743625,95454.0,95451.0,0.01047657]
[1768611769897,0.01047625,95454.0,95451.0,0.01047657]
[1768611770166,0.12696,95453.0,95451.0,0.01047657]
[1768611771340,0.13743636,95453.0,95450.0,0.01047668]
[1768611771578,0.12696,95453.0,95450.0,0.01047668]
[1768611771981,0.13743625,95454.0,95451.0,0.01047657]
[1768611772770,0.01047636,95453.0,95450.0,0.01047668]
[1768611774308,0.12696,95454.0,95451.0,0.01047657]
[1768611774549,0.12696,95454.0,95451.0,0.06285904]
[1768611774776,0.12696,95454.0,95452.0,0.05238231]
[1768611775729,0.12696,95454.0,95451.0,0.01047657]
[1768611775730,0.12696,95454.0,95451.0,0.0628584]
[1768611775992,0.12696,95454.0,95451.0,0.01047657]
[1768611776233,0.12696,95454.0,95451.0,0.06285917]
[1768611776706,0.12696,95454.0,95452.0,0.05238215]
[1768611776916,0.12696,95454.0,95451.0,0.01047657]
[1768611778552,0.18981755,95454.0,95450.0,0.01047668]
[1768611778783,0.13743625,95454.0,95450.0,0.01047668]
[1768611779672,0.12696,95454.0,95451.0,0.06285905]
[1768611780246,0.12696,95454.0,95451.0,0.06285932]
[1768611780654,0.12696,95454.0,95451.0,0.06285944]
[1768611781055,0.12696,95454.0,95453.0,0.0523818]
[1768611781734,0.12696,95454.0,95452.0,0.05238195]
[1768611781908,0.12696,95454.0,95453.0,0.0523818]
[1768611782759,0.12696,95454.0,95452.0,0.05238219]
[1768611782955,0.12696,95454.0,95453.0,0.0523818]
[1768611783615,0.12696,95458.0,95455.0,0.01047614]
[1768611783935,0.13743581,95458.0,95455.0,0.01047614]
[1768611784440,0.01047592,95457.0,95453.0,0.01047636]
[1768611785873,0.01047592,95457.0,95453.0,0.06285807]
[1768611786035,0.01047592,95457.0,95454.0,0.01047625]
[1768611786977,0.13743581,95458.0,95454.0,0.01047625]
[1768611787358,0.01047581,95458.0,95454.0,0.01047625]
[1768611788606,0.06285503,95458.0,95454.0,0.01047625]
[1768611788809,0.01047581,95458.0,95454.0,0.06285738]
[1768611789023,0.01047581,95458.0,95454.0,0.01047625]
[1768611789926,0.01047592,95457.0,95453.0,0.01047636]
[1768611790140,0.01047603,95456.0,95453.0,0.02213222]
[1768611790937,0.01047603,95456.0,95452.0,0.01047646]
[1768611791145,0.01047614,95455.0,95452.0,0.01047646]
[1768611791830,0.01047581,95458.0,95454.0,0.01047625]
[1768611792014,0.06285559,95457.0,95453.0,0.01047636]
[1768611792848,0.01047592,95457.0,95454.0,0.01047625]
[1768611793054,0.01047592,95457.0,95453.0,0.01047636]
[1768611793810,0.06285556,95457.0,95453.0,0.01047636]
[1768611794486,0.01047592,95457.0,95453.0,0.01047636]
[1768611795543,0.06285566,95457.0,95453.0,0.01047636]
[1768611797026,0.01047592,95457.0,95453.0,0.01047636]
[1768611797458,0.01047603,95456.0,95453.0,0.01047636]
[1768611797575,0.01047603,95456.0,95452.0,0.01047646]
[1768611798389,0.01047592,95457.0,95453.0,0.01047636]
[1768611798631,0.01047592,95457.0,95453.0,0.06285785]
[1768611799068,0.01047581,95458.0,95454.0,0.01047625]
[1768611799665,0.01096489,95459.0,95454.0,0.01047625]
[1768611799883,0.01096489,95459.0,95455.0,0.01047614]
[1768611800091,0.0523796,95457.0,95453.0,0.01047636]
[1768611800306,0.01047592,95457.0,95453.0,0.01047636]
[1768611800546,0.0628556,95457.0,95453.0,0.01047636]
[1768611801650,0.01047603,95456.0,95453.0,0.01047636]
[1768611802956,0.01047614,95455.0,95451.0,0.01047657]
[1768611803137,0.01047614,95455.0,95451.0,0.06285934]
[1768611804092,0.01047614,95455.0,95452.0,0.01047646]
[1768611804303,0.01047603,95456.0,95452.0,0.06285872]
[1768611804934,0.01047581,95458.0,95454.0,0.01047625]
[1768611805346,0.01047603,95456.0,95452.0,0.01047646]
[1768611805552,0.01047614,95455.0,95452.0,0.01047646]
[1768611806181,0.01047603,95456.0,95452.0,0.06285875]
[1768611806354,0.01047592,95457.0,95453.0,0.01047636]
[1768611806556,0.01047581,95458.0,95454.0,0.01047625]
[1768611806918,0.01047592,95457.0,95454.0,0.01047625]
[1768611807280,0.01047603,95456.0,95453.0,0.01047636]
[1768611807482,0.01047603,95456.0,95452.0,0.01047646]
[1768611808296,0.01047603,95456.0,95451.0,0.01047657]
[1768611808297,0.01047614,95455.0,95451.0,0.01047657]
[1768611808499,0.01047625,95454.0,95451.0,0.01047657]
[1768611809145,0.01047603,95456.0,95452.0,0.01047646]
[1768611809353,0.01047603,95456.0,95453.0,0.01047636]
[1768611809557,0.01047592,95457.0,95453.0,0.01047636]
[1768611810433,0.01047581,95458.0,95454.0,0.01047625]
[1768611810672,0.01096489,95459.0,95454.0,0.01047625]
[1768611810877,0.01096489,95459.0,95455.0,0.01047614]
[1768611811495,0.01047581,95458.0,95455.0,0.01047614]
[1768611811846,0.06285488,95458.0,95454.0,0.01047625]
[1768611812432,0.01047592,95457.0,95454.0,0.01047625]
[1768611814023,0.01096489,95459.0,95455.0,0.01047614]
[1768611814508,0.01096489,95459.0,95455.0,0.06285684]
[1768611814713,0.00552053,95459.0,95456.0,0.01047603]
[1768611814915,0.1,95460.0,95457.0,0.01047592]
[1768611815118,0.22696,95460.0,95457.0,0.01047592]
[1768611816544,0.22696,95460.0,95456.0,0.04437156]
[1768611817041,0.22696,95460.0,95457.0,0.05237948]
[1768611817201,0.0104757,95459.0,95456.0,0.01047603]
[1768611817413,0.06290138,95459.0,95455.0,0.01047614]
[1768611818261,0.01047581,95458.0,95455.0,0.01047614]
[1768611818843,0.06285494,95458.0,95454.0,0.01047625]
[1768611819019,0.01047581,95458.0,95454.0,0.06285738]
[1768611820424,0.01047581,95458.0,95455.0,0.01047614]
[1768611821968,0.01047592,95457.0,95453.0,0.01047636]
[1768611822195,0.01047581,95458.0,95454.0,0.01047625]
[1768611822409,0.01052287,95459.0,95455.0,0.06285643]
[1768611823082,0.01052287,95459.0,95456.0,0.06285615]
[1768611823083,4.717e-05,95459.0,95456.0,0.06285615]
[1768611823307,4.717e-05,95459.0,95456.0,0.01047603]
[1768611823714,0.01052287,95459.0,95456.0,0.01047603]
[1768611824951,0.0629014,95459.0,95456.0,0.01047603]
[1768611825152,0.0629014,95459.0,95455.0,0.01047614]
[1768611826468,0.01052287,95459.0,95455.0,0.06285638]
[1768611827014,0.01052287,95459.0,95456.0,0.01047603]
[1768611828023,0.06290138,95459.0,95456.0,0.01047603]
[1768611828199,0.01052287,95459.0,95456.0,0.01047603]
[1768611828546,4.717e-05,95459.0,95456.0,0.01047603]
[1768611830011,4.717e-05,95459.0,95457.0,0.05237911]
[1768611830634,4.717e-05,95459.0,95456.0,0.06285605]
[1768611831088,4.717e-05,95459.0,95456.0,0.01047603]
[1768611831282,4.717e-05,95459.0,95456.0,0.06285604]
[1768611831575,4.717e-05,95459.0,95456.0,0.01047603]
[1768611832429,0.01052287,95459.0,95456.0,0.01047603]
[1768611832629,0.01052287,95459.0,95455.0,0.01047614]
[1768611833527,4.717e-05,95459.0,95456.0,0.01047603]
[1768611833901,4.717e-05,95459.0,95456.0,0.06285605]
[1768611834109,4.717e-05,95459.0,95456.0,0.06285571]
[1768611834315,4.717e-05,95459.0,95456.0,0.01047603]
[1768611835239,0.06290157,95459.0,95455.0,0.01047614]
[1768611835597,0.01052287,95459.0,95455.0,0.01047614]
[1768611836238,0.01047581,95458.0,95455.0,0.01047614]
[1768611839832,4.717e-05,95459.0,95456.0,0.01047603]
[1768611841328,4.717e-05,95459.0,95457.0,0.05237917]
[1768611841527,4.717e-05,95459.0,95455.0,0.01047614]
[1768611841725,0.01047592,95457.0,95453.0,0.01047636]
[1768611841950,0.01047603,95456.0,95449.0,0.06286049]
[1768611842163,0.01047614,95455.0,95449.0,0.01047679]
[1768611842370,0.01047625,95454.0,95449.0,0.05649152]
[1768611842581,0.01047603,95456.0,95452.0,0.01047646]
[1768611842783,0.01047614,95455.0,95451.0,0.01047657]
[1768611843040,4.717e-05,95459.0,95441.0,0.04601473]
[1768611843041,0.01047745,95443.0,95441.0,0.04601473]
[1768611843257,0.01038671,95443.0,95436.0,0.01047822]
[1768611843511,0.01047756,95442.0,95438.0,0.010478]
[1768611843745,0.01047734,95444.0,95440.0,0.01047778]
[1768611844195,0.01047723,95445.0,95441.0,0.01047767]
[1768611844412,0.01047734,95444.0,95441.0,0.01047767]
[1768611845121,0.01047734,95444.0,95440.0,0.01047778]
[1768611845771,0.01047745,95443.0,95440.0,0.01047778]
[1768611846396,0.01047745,95443.0,95437.0,0.01047811]
[1768611846397,0.01047756,95442.0,95437.0,0.01047811]
[1768611846604,0.01047756,95442.0,95438.0,0.010478]
[1768611847810,0.01047745,95443.0,95438.0,0.010478]
[1768611848027,0.01047723,95445.0,95441.0,0.01047767]
[1768611848558,0.01047734,95444.0,95439.0,0.06286726]
[1768611848760,0.01047734,95444.0,95439.0,0.01047789]
[1768611850263,0.06286422,95444.0,95439.0,0.01047789]
[1768611850464,0.01047756,95442.0,95439.0,0.01047789]
[1768611850688,0.01047734,95444.0,95439.0,0.06286728]
[1768611850893,0.01047734,95444.0,95439.0,0.06286689]
[1768611851099,0.01047734,95444.0,95440.0,0.01047778]
[1768611851504,0.01047723,95445.0,95441.0,0.01047767]
[1768611851719,0.01047734,95444.0,95441.0,0.01047767]
[1768611851927,0.13743712,95446.0,95442.0,0.01047756]
[1768611852131,0.01047679,95449.0,95440.0,0.01047778]
[1768611852302,0.12696,95455.0,95454.0,0.01047625]
[1768611853376,0.12696,95455.0,95453.0,0.01047636]
[1768611853572,0.12696,95455.0,95453.0,0.010431]
[1768611853979,0.12696,95455.0,95452.0,0.01047646]
[1768611855750,0.12696,95455.0,95452.0,0.06285879]
[1768611856082,0.12696,95455.0,95452.0,0.01047646]
[1768611857033,0.12696,95455.0,95452.0,0.06285877]
[1768611858438,0.13743614,95455.0,95450.0,0.01047668]
[1768611858639,0.01047646,95452.0,95449.0,0.01047679]
[1768611858845,0.01047646,95452.0,95449.0,0.01043143]
[1768611859214,0.01047636,95453.0,95449.0,0.01047679]
[1768611859416,0.01047625,95454.0,95450.0,0.01047668]
[1768611859545,0.01047636,95453.0,95449.0,0.01047679]
[1768611859752,0.06285859,95453.0,95449.0,0.01047679]
[1768611860126,0.01047646,95452.0,95448.0,0.0104769]
[1768611860261,0.01047636,95453.0,95450.0,0.01047668]
[1768611860469,0.01047625,95454.0,95451.0,0.01047657]
[1768611860679,0.01047625,95454.0,95450.0,0.01043132]
[1768611861095,0.01047625,95454.0,95451.0,0.01047657]
[1768611861308,0.13743614,95455.0,95451.0,0.01047657]
[1768611861309,0.12696,95455.0,95452.0,0.01047646]
[1768611861543,0.13743614,95455.0,95451.0,0.01047657]
[1768611861768,0.12696,95455.0,95452.0,0.01047646]
[1768611862797,0.13743614,95455.0,95452.0,0.01047646]
[1768611863700,0.01047625,95454.0,95451.0,0.01047657]
[1768611864407,0.12696,95455.0,95452.0,0.01047646]
[1768611866029,0.12696,95455.0,95453.0,0.05238138]
[1768611866614,0.12696,95455.0,95454.0,0.05238125]
[1768611867670,0.01047668,95458.0,95457.0,0.0523796]
[1768611867880,0.1164843,95459.0,95456.0,0.01047603]
[1768611868209,0.1164843,95459.0,95456.0,0.06285608]
[1768611868368,0.1164843,95459.0,95456.0,0.01047603]
[1768611868586,0.1164843,95459.0,95456.0,0.06285612]
[1768611868848,0.1,95460.0,95456.0,0.06285569]
[1768611869045,0.22696,95460.0,95457.0,0.01047592]
[1768611870177,0.23743614,95460.0,95457.0,0.01047592]
[1768611870387,0.24791173,95460.0,95456.0,0.01047603]
[1768611871805,0.12095173,95460.0,95457.0,0.01047592]
[1768611874038,0.11047614,95460.0,95457.0,0.06285551]
[1768611874252,0.1,95460.0,95457.0,0.01047592]
[1768611877601,0.11047559,95460.0,95457.0,0.01047592]
[1768611878585,0.1,95460.0,95457.0,0.06285548]
[1768611878793,0.1,95460.0,95457.0,0.01047592]
[1768611880400,0.11047559,95460.0,95457.0,0.01047592]
[1768611881956,0.11047559,95460.0,95457.0,0.01043056]
[1768611882102,0.1,95460.0,95457.0,0.01043056]
[1768611882310,0.0104757,95459.0,95455.0,0.01047614]
[1768611882718,0.11047559,95460.0,95456.0,0.01047603]
[1768611883116,0.0104757,95459.0,95456.0,0.01047603]
[1768611883314,0.11047559,95460.0,95456.0,0.01047603]
[1768611884402,0.11047559,95460.0,95457.0,0.01047592]
[1768611887135,0.1,95460.0,95457.0,0.06285535]
[1768611888607,0.11047559,95460.0,95457.0,0.01047592]
[1768611889930,0.1,95460.0,95457.0,0.01047592]
[1768611890133,0.1,95460.0,95457.0,0.06285535]
[1768611890359,0.1,95460.0,95457.0,0.01047592]
[1768611891408,0.1,95460.0,95457.0,0.06285541]
[1768611891757,0.1,95460.0,95457.0,0.01047592]
[1768611892209,0.1,95460.0,95457.0,0.0628555]
[1768611892586,0.1,95460.0,95457.0,0.01047592]
[1768611893050,0.11047559,95460.0,95456.0,0.01047603]
[1768611893178,0.0104757,95459.0,95455.0,0.01047614]
[1768611893379,0.0104757,95459.0,95456.0,0.01047603]
[1768611893584,0.0104757,95459.0,95452.0,0.01047646]
[1768611893585,0.01047603,95456.0,95452.0,0.01047646]
[1768611894013,0.01047603,95456.0,95452.0,0.06285863]
[1768611894217,0.01047603,95456.0,95452.0,0.06285838]
[1768611894428,0.01047603,95456.0,95452.0,0.01047646]
[1768611894851,0.01047603,95456.0,95453.0,0.01047636]
[1768611895508,0.01047581,95458.0,95454.0,0.01047625]
[1768611895714,0.01047592,95457.0,95454.0,0.01047625]
[1768611896497,0.01047592,95457.0,95453.0,0.01047636]
[1768611896846,0.01047581,95458.0,95454.0,0.0628575]
[1768611897821,0.01047581,95458.0,95455.0,0.01047614]
[1768611899023,0.0104757,95459.0,95455.0,0.01047614]
[1768611899255,0.01047581,95458.0,95455.0,0.01047614]
[1768611899732,0.06285502,95458.0,95454.0,0.01047625]
[1768611899950,0.0104757,95459.0,95455.0,0.01047614]
[1768611901761,0.06285433,95459.0,95455.0,0.01047614]
[1768611901975,0.0104757,95459.0,95455.0,0.06285661]
[1768611902399,0.01047581,95458.0,95454.0,0.01047625]
[1768611902611,0.01047581,95458.0,95454.0,0.06285744]
[1768611902830,0.01047581,95458.0,95454.0,0.01047625]
[1768611903788,0.01047592,95457.0,95454.0,0.01047625]
[1768611904468,0.01047581,95458.0,95454.0,0.01047625]
[1768611905059,0.01047581,95458.0,95455.0,0.01047614]
[1768611905933,0.0104757,95459.0,95455.0,0.01047614]
[1768611906138,0.0104757,95459.0,95455.0,0.06285651]
[1768611906538,0.01047581,95458.0,95455.0,0.01047614]
[1768611907078,0.01047592,95457.0,95454.0,0.01047625]
[1768611908376,0.01047603,95456.0,95453.0,0.01047636]
[1768611908596,0.01047603,95456.0,95452.0,0.01047646]
[1768611908804,0.06285634,95456.0,95452.0,0.01047646]
[1768611909012,0.01047603,95456.0,95452.0,0.01047646]
[1768611909453,0.01047603,95456.0,95240.0,100.0]
[1768611909454,0.09937234,95446.0,95445.0,1e-08]
[1768611909666,0.06282155,95437.0,95431.0,0.06287239]
[1768611909876,0.010478,95438.0,95432.0,0.01047866]
[1768611910092,0.01047789,95439.0,95434.0,0.01047844]
[1768611910301,0.010478,95438.0,95435.0,0.01047833]
[1768611910526,0.01047789,95439.0,95435.0,0.01047833]
[1768611910737,0.010478,95438.0,95434.0,0.01047844]
[1768611911161,0.01047789,95439.0,95435.0,0.06286998]
[1768611911417,0.01047789,95439.0,95432.0,0.01047866]
[1768611911418,0.05239113,95436.0,95432.0,0.01047866]
[1768611911663,0.01047822,95436.0,95433.0,0.01047855]
[1768611911919,0.01047811,95437.0,95433.0,0.01047855]
[1768611912123,0.01047811,95437.0,95402.0,0.10925556]
[1768611912124,0.01047855,95433.0,95421.0,0.05255639]
[1768611912326,0.01047866,95432.0,95428.0,0.05746551]
[1768611912535,0.01047877,95431.0,95428.0,0.05746551]
[1768611912751,0.01047866,95432.0,95428.0,0.05746551]
[1768611912957,0.01047844,95434.0,95429.0,0.0574654]
[1768611913184,0.01047833,95435.0,95430.0,0.05746529]
[1768611913394,0.01047844,95434.0,95431.0,0.01047877]
[1768611914472,0.01047855,95433.0,95430.0,0.04698641]
[1768611915573,0.01047855,95433.0,95430.0,0.05746529]
[1768611915773,0.01047844,95434.0,95430.0,0.01047888]
[1768611915960,0.01047855,95433.0,95430.0,0.01047888]
[1768611916571,0.01047855,95433.0,95429.0,0.01047899]
[1768611916789,0.01047866,95432.0,95429.0,0.01047899]
[1768611917128,0.01047866,95432.0,95428.0,0.0104791]
[1768611917334,0.01047866,95432.0,95428.0,0.06287458]
[1768611917542,0.01047866,95432.0,95428.0,0.0104791]
[1768611918533,0.01047866,95432.0,95429.0,0.01047899]
[1768611918976,0.06287203,95432.0,95428.0,0.0104791]
[1768611919781,0.01047866,95432.0,95428.0,0.0104791]
[1768611920140,0.01047877,95431.0,95428.0,0.0104791]
[1768611922451,0.01047877,95431.0,95427.0,0.01052639]
[1768611922655,0.01047866,95432.0,95428.0,0.06287462]
[1768611922864,0.01009362,95431.0,95428.0,0.0104791]
[1768611923071,0.01009362,95431.0,95426.0,0.01047932]
[1768611923072,0.01047899,95429.0,95425.0,0.01047943]
[1768611923299,0.01047921,95427.0,95425.0,9.398e-05]